[Event "Titled Tuesday Blitz May 03 Early 2022"]
[White "Cherniaiev, Tykhon"]
[Black "Matveeva, Olga"]
[WhiteFideId "14182360"]
[BlackFideId "24107018"]
[WhiteElo "2289"]
[BlackElo "2083"]
[Result "1-0"]
[Round "02"]
[TimeControl "180+1"]
[Date "2022.05.03"]
[WhiteClock "0:02:39"]
[BlackClock "0:01:01"]

1. Nf3 {[%clk 0:03:00]}  Nf6 {[%clk 0:02:57]} 2. c4 {[%clk 0:03:01]}  e6 {[%clk 0:02:56]} 3. d4 {[%clk 0:03:01]}  Bb4+ {[%clk 0:02:56]} 4. Bd2 {[%clk 0:03:01]}  Qe7 {[%clk 0:02:55]} 5. g3 {[%clk 0:03:00]}  Nc6 {[%clk 0:02:54]} 6. Bg2 {[%clk 0:03:00]}  O-O {[%clk 0:02:46]} 7. O-O {[%clk 0:03:00]}  Bxd2 {[%clk 0:02:41]} 8. Nbxd2 {[%clk 0:03:01]}  d6 {[%clk 0:02:39]} 9. Re1 {[%clk 0:03:01]}  e5 {[%clk 0:02:37]} 10. e3 {[%clk 0:03:01]}  Bg4 {[%clk 0:02:33]} 11. Qb3 {[%clk 0:03:01]}  Rab8 {[%clk 0:02:30]} 12. h3 {[%clk 0:03:00]}  Bxf3 {[%clk 0:02:29]} 13. Nxf3 {[%clk 0:03:01]}  Nd7 {[%clk 0:02:20]} 14. Rad1 {[%clk 0:03:00]}  Kh8 {[%clk 0:02:15]} 15. Qc3 {[%clk 0:02:58]}  f5 {[%clk 0:02:05]} 16. b4 {[%clk 0:02:55]}  Qf6 {[%clk 0:01:54]} 17. b5 {[%clk 0:02:53]}  Ne7 {[%clk 0:01:54]} 18. dxe5 {[%clk 0:02:53]}  Nxe5 {[%clk 0:01:53]} 19. Nxe5 {[%clk 0:02:53]}  dxe5 {[%clk 0:01:53]} 20. Rd7 {[%clk 0:02:52]}  c6 {[%clk 0:01:47]} 21. Red1 {[%clk 0:02:51]}  cxb5 {[%clk 0:01:26]} 22. cxb5 {[%clk 0:02:52]}  Rbc8 {[%clk 0:01:25]} 23. Qa3 {[%clk 0:02:47]}  Ng6 {[%clk 0:01:16]} 24. Bxb7 {[%clk 0:02:46]}  Rc2 {[%clk 0:01:13]} 25. R1d6 {[%clk 0:02:39]}  Qg5 {[%clk 0:01:01]} 26. Rxg6 {[%clk 0:02:39]} 1-0


[Site "https://www.chess.com"]

[Event "Titled Tuesday Blitz May 03 Early 2022"]
[White "Chuemsakul, Sarocha"]
[Black "Barp, Alberto"]
[WhiteFideId "6203710"]
[BlackFideId "872555"]
[WhiteElo "1703"]
[BlackElo "2229"]
[Result "0-1"]
[Round "02"]
[TimeControl "180+1"]
[Date "2022.05.03"]
[WhiteClock "0:00:01"]
[BlackClock "0:02:12"]

1. Nf3 {[%clk 0:03:00]}  b6 {[%clk 0:02:56]} 2. g3 {[%clk 0:03:00]}  Bb7 {[%clk 0:02:55]} 3. Bg2 {[%clk 0:03:00]}  Nf6 {[%clk 0:02:55]} 4. O-O {[%clk 0:02:58]}  c5 {[%clk 0:02:55]} 5. c4 {[%clk 0:02:49]}  e6 {[%clk 0:02:54]} 6. Nc3 {[%clk 0:02:46]}  Be7 {[%clk 0:02:54]} 7. e3 {[%clk 0:02:19]}  O-O {[%clk 0:02:53]} 8. d4 {[%clk 0:02:19]}  cxd4 {[%clk 0:02:54]} 9. exd4 {[%clk 0:02:17]}  d5 {[%clk 0:02:53]} 10. Ne5 {[%clk 0:02:14]}  Nc6 {[%clk 0:02:49]} 11. cxd5 {[%clk 0:01:25]}  Nxe5 {[%clk 0:02:41]} 12. dxe5 {[%clk 0:01:24]}  Nxd5 {[%clk 0:02:42]} 13. Nxd5 {[%clk 0:01:20]}  Bxd5 {[%clk 0:02:43]} 14. Bxd5 {[%clk 0:01:07]}  exd5 {[%clk 0:02:44]} 15. Be3 {[%clk 0:01:04]}  Qd7 {[%clk 0:02:43]} 16. Kg2 {[%clk 0:00:58]}  Rfd8 {[%clk 0:02:41]} 17. Qb3 {[%clk 0:00:56]}  d4 {[%clk 0:02:38]} 18. Rfd1 {[%clk 0:00:55]}  Qb7+ {[%clk 0:02:38]} 19. f3 {[%clk 0:00:49]}  dxe3 {[%clk 0:02:38]} 20. Qxe3 {[%clk 0:00:49]}  Bc5 {[%clk 0:02:37]} 21. Qg5 {[%clk 0:00:46]}  Qe7 {[%clk 0:02:32]} 22. Qf4 {[%clk 0:00:41]}  h6 {[%clk 0:02:31]} 23. a3 {[%clk 0:00:32]}  a5 {[%clk 0:02:30]} 24. Qe4 {[%clk 0:00:20]}  Rac8 {[%clk 0:02:25]} 25. f4 {[%clk 0:00:18]}  Rxd1 {[%clk 0:02:18]} 26. Rxd1 {[%clk 0:00:18]}  Rd8 {[%clk 0:02:18]} 27. Rd5 {[%clk 0:00:13]}  Rxd5 {[%clk 0:02:18]} 28. Qxd5 {[%clk 0:00:13]}  Qe6 {[%clk 0:02:18]} 29. Qd8+ {[%clk 0:00:10]}  Kh7 {[%clk 0:02:19]} 30. Qd3+ {[%clk 0:00:10]}  g6 {[%clk 0:02:19]} 31. Qe4 {[%clk 0:00:04]}  h5 {[%clk 0:02:18]} 32. b4 {[%clk 0:00:04]}  axb4 {[%clk 0:02:18]} 33. axb4 {[%clk 0:00:05]}  Bf8 {[%clk 0:02:18]} 34. Qd3 {[%clk 0:00:04]}  Bxb4 {[%clk 0:02:16]} 35. Qe3 {[%clk 0:00:03]}  Bc5 {[%clk 0:02:16]} 36. Qe4 {[%clk 0:00:03]}  Kg8 {[%clk 0:02:15]} 37. Qa8+ {[%clk 0:00:02]}  Bf8 {[%clk 0:02:15]} 38. Qe4 {[%clk 0:00:02]}  b5 {[%clk 0:02:15]} 39. h3 {[%clk 0:00:02]}  Qc4 {[%clk 0:02:15]} 40. Qf3 {[%clk 0:00:01]}  b4 {[%clk 0:02:14]} 41. g4 {[%clk 0:00:01]}  hxg4 {[%clk 0:02:15]} 42. hxg4 {[%clk 0:00:01]}  b3 {[%clk 0:02:15]} 43. f5 {[%clk 0:00:01]}  Qc2+ {[%clk 0:02:14]} 44. Kg3 {[%clk 0:00:01]}  b2 {[%clk 0:02:12]} 0-1


[Site "https://www.chess.com"]

[Event "Titled Tuesday Blitz May 03 Early 2022"]
[White "Coto Mederos, Michel"]
[Black "Kazakouski, Valery"]
[WhiteFideId "3508528"]
[BlackFideId "13507443"]
[WhiteElo "2427"]
[BlackElo "2524"]
[Result "0-1"]
[Round "02"]
[TimeControl "180+1"]
[Date "2022.05.03"]
[WhiteClock "0:00:03"]
[BlackClock "0:00:17"]

1. c4 {[%clk 0:03:00]}  e6 {[%clk 0:02:57]} 2. Nc3 {[%clk 0:02:56]}  d5 {[%clk 0:02:57]} 3. e3 {[%clk 0:02:56]}  a6 {[%clk 0:02:56]} 4. Nf3 {[%clk 0:02:51]}  Nf6 {[%clk 0:02:54]} 5. b3 {[%clk 0:02:47]}  b6 {[%clk 0:02:54]} 6. Bb2 {[%clk 0:02:47]}  Bb7 {[%clk 0:02:54]} 7. Qc2 {[%clk 0:02:44]}  Nbd7 {[%clk 0:02:53]} 8. Be2 {[%clk 0:02:35]}  Bd6 {[%clk 0:02:52]} 9. Rg1 {[%clk 0:02:33]}  h5 {[%clk 0:02:29]} 10. cxd5 {[%clk 0:02:13]}  exd5 {[%clk 0:02:30]} 11. h3 {[%clk 0:02:10]}  h4 {[%clk 0:02:29]} 12. Nd4 {[%clk 0:02:10]}  g6 {[%clk 0:02:28]} 13. f4 {[%clk 0:02:04]}  Qe7 {[%clk 0:02:25]} 14. Nf3 {[%clk 0:01:57]}  O-O-O {[%clk 0:02:17]} 15. O-O-O {[%clk 0:01:57]}  Kb8 {[%clk 0:02:16]} 16. Kb1 {[%clk 0:01:56]}  Ne4 {[%clk 0:02:04]} 17. Rc1 {[%clk 0:01:44]}  Rhe8 {[%clk 0:01:54]} 18. Rge1 {[%clk 0:01:31]}  Ng3 {[%clk 0:01:54]} 19. Na4 {[%clk 0:01:16]}  c5 {[%clk 0:01:29]} 20. Ka1 {[%clk 0:01:13]}  Nxe2 {[%clk 0:01:20]} 21. Rxe2 {[%clk 0:01:14]}  d4 {[%clk 0:01:20]} 22. Ree1 {[%clk 0:01:05]}  Be4 {[%clk 0:01:11]} 23. Qd1 {[%clk 0:00:54]}  b5 {[%clk 0:01:05]} 24. exd4 {[%clk 0:00:52]}  Bxf3 {[%clk 0:01:00]} 25. Qxf3 {[%clk 0:00:33]}  Qxe1 {[%clk 0:00:59]} 26. Qc6 {[%clk 0:00:30]}  Qe6 {[%clk 0:00:41]} 27. d5 {[%clk 0:00:26]}  Qe7 {[%clk 0:00:42]} 28. Qxa6 {[%clk 0:00:23]}  bxa4 {[%clk 0:00:36]} 29. Qb5+ {[%clk 0:00:21]}  Ka7 {[%clk 0:00:34]} 30. Qxa4+ {[%clk 0:00:18]}  Kb8 {[%clk 0:00:30]} 31. Qb5+ {[%clk 0:00:18]}  Nb6 {[%clk 0:00:31]} 32. Qxb6+ {[%clk 0:00:18]}  Qb7 {[%clk 0:00:31]} 33. Qa5 {[%clk 0:00:11]}  Qxd5 {[%clk 0:00:31]} 34. Qb5+ {[%clk 0:00:04]}  Qb7 {[%clk 0:00:31]} 35. Qc4 {[%clk 0:00:05]}  Re4 {[%clk 0:00:30]} 36. Qc2 {[%clk 0:00:05]}  Bxf4 {[%clk 0:00:27]} 37. Rf1 {[%clk 0:00:05]}  g5 {[%clk 0:00:21]} 38. Bc3 {[%clk 0:00:03]}  Qd5 {[%clk 0:00:20]} 39. Qb2 {[%clk 0:00:04]}  Rde8 {[%clk 0:00:19]} 40. Qa3 {[%clk 0:00:04]}  Bxd2 {[%clk 0:00:16]} 41. Bb2 {[%clk 0:00:03]}  Re1+ {[%clk 0:00:16]} 42. Rxe1 {[%clk 0:00:03]}  Rxe1+ {[%clk 0:00:17]} 0-1


[Site "https://www.chess.com"]

[Event "Titled Tuesday Blitz May 03 Early 2022"]
[White "Cramling Bellon, Anna"]
[Black "Tasev, Dejan"]
[WhiteFideId "32009232"]
[BlackFideId "936618"]
[WhiteElo "1905"]
[BlackElo "2253"]
[Result "0-1"]
[Round "02"]
[TimeControl "180+1"]
[Date "2022.05.03"]
[WhiteClock "0:00:03"]
[BlackClock "0:00:28"]

1. d4 {[%clk 0:03:00]}  Nf6 {[%clk 0:02:59]} 2. c4 {[%clk 0:02:59]}  g6 {[%clk 0:02:59]} 3. Nc3 {[%clk 0:02:53]}  Bg7 {[%clk 0:02:58]} 4. e4 {[%clk 0:02:53]}  d6 {[%clk 0:02:59]} 5. h3 {[%clk 0:02:52]}  O-O {[%clk 0:02:58]} 6. Bg5 {[%clk 0:02:49]}  Nbd7 {[%clk 0:02:58]} 7. Nf3 {[%clk 0:02:48]}  c5 {[%clk 0:02:58]} 8. d5 {[%clk 0:02:49]}  b5 {[%clk 0:02:57]} 9. cxb5 {[%clk 0:02:46]}  a6 {[%clk 0:02:57]} 10. a4 {[%clk 0:02:44]}  Bb7 {[%clk 0:02:47]} 11. Bd3 {[%clk 0:02:38]}  h6 {[%clk 0:02:43]} 12. Be3 {[%clk 0:02:34]}  Ne8 {[%clk 0:02:41]} 13. O-O {[%clk 0:02:32]}  Nc7 {[%clk 0:02:39]} 14. Qd2 {[%clk 0:02:25]}  Kh7 {[%clk 0:02:37]} 15. Qe2 {[%clk 0:01:55]}  axb5 {[%clk 0:02:34]} 16. axb5 {[%clk 0:01:54]}  Nb6 {[%clk 0:02:19]} 17. Nd2 {[%clk 0:01:07]}  e6 {[%clk 0:02:08]} 18. dxe6 {[%clk 0:01:00]}  Nxe6 {[%clk 0:02:04]} 19. Rfd1 {[%clk 0:00:50]}  Nd4 {[%clk 0:01:57]} 20. Qg4 {[%clk 0:00:38]}  Qe7 {[%clk 0:01:38]} 21. f4 {[%clk 0:00:38]}  f5 {[%clk 0:01:00]} 22. Qg3 {[%clk 0:00:38]}  fxe4 {[%clk 0:00:55]} 23. Ndxe4 {[%clk 0:00:26]}  Nf5 {[%clk 0:00:53]} 24. Qf2 {[%clk 0:00:16]}  Nxe3 {[%clk 0:00:52]} 25. Nxd6 {[%clk 0:00:09]}  Nxd1 {[%clk 0:00:46]} 26. Bxg6+ {[%clk 0:00:03]}  Kh8 {[%clk 0:00:38]} 27. Rxd1 {[%clk 0:00:03]}  Rad8 {[%clk 0:00:30]} 28. f5 {[%clk 0:00:03]}  Rxd6 {[%clk 0:00:28]} 29. Rxd6 {[%clk 0:00:03]}  Qxd6 {[%clk 0:00:29]} 30. Qh4 {[%clk 0:00:04]}  Qd4+ {[%clk 0:00:28]} 31. Qxd4 {[%clk 0:00:03]}  Bxd4+ {[%clk 0:00:28]} 0-1


[Site "https://www.chess.com"]

[Event "Titled Tuesday Blitz May 03 Early 2022"]
[White "Csonka, Balazs"]
[Black "Warchol, Kamil"]
[WhiteFideId "742910"]
[BlackFideId "21858241"]
[WhiteElo "2404"]
[BlackElo "1910"]
[Result "1-0"]
[Round "02"]
[TimeControl "180+1"]
[Date "2022.05.03"]
[WhiteClock "0:00:06"]
[BlackClock "0:00:10"]

1. e4 {[%clk 0:03:00]}  c5 {[%clk 0:02:59]} 2. Nf3 {[%clk 0:02:59]}  e6 {[%clk 0:02:59]} 3. d4 {[%clk 0:02:55]}  cxd4 {[%clk 0:03:00]} 4. Nxd4 {[%clk 0:02:56]}  a6 {[%clk 0:03:00]} 5. Nc3 {[%clk 0:02:55]}  b5 {[%clk 0:02:59]} 6. g3 {[%clk 0:02:50]}  Bb7 {[%clk 0:02:56]} 7. Bg2 {[%clk 0:02:50]}  b4 {[%clk 0:02:56]} 8. Na4 {[%clk 0:02:44]}  Nf6 {[%clk 0:02:57]} 9. Qe2 {[%clk 0:02:38]}  Be7 {[%clk 0:02:50]} 10. O-O {[%clk 0:02:32]}  d6 {[%clk 0:02:49]} 11. Rd1 {[%clk 0:02:15]}  Qc7 {[%clk 0:02:44]} 12. a3 {[%clk 0:02:09]}  bxa3 {[%clk 0:02:34]} 13. Rxa3 {[%clk 0:01:59]}  Nbd7 {[%clk 0:02:26]} 14. Rc3 {[%clk 0:01:49]}  Qa5 {[%clk 0:02:24]} 15. b3 {[%clk 0:01:44]}  Nc5 {[%clk 0:02:13]} 16. Bd2 {[%clk 0:01:27]}  Ncxe4 {[%clk 0:01:35]} 17. Rc8+ {[%clk 0:01:20]}  Rxc8 {[%clk 0:01:28]} 18. Bxa5 {[%clk 0:01:20]}  O-O {[%clk 0:01:29]} 19. Nb6 {[%clk 0:00:56]}  Rb8 {[%clk 0:01:26]} 20. Nd7 {[%clk 0:00:50]}  Nxd7 {[%clk 0:01:21]} 21. Bxe4 {[%clk 0:00:50]}  d5 {[%clk 0:01:09]} 22. Bg2 {[%clk 0:00:49]}  Bf6 {[%clk 0:01:10]} 23. c4 {[%clk 0:00:44]}  Rfe8 {[%clk 0:01:08]} 24. h4 {[%clk 0:00:38]}  h6 {[%clk 0:01:05]} 25. cxd5 {[%clk 0:00:36]}  exd5 {[%clk 0:01:06]} 26. Qd2 {[%clk 0:00:34]}  Nc5 {[%clk 0:01:04]} 27. Nf5 {[%clk 0:00:25]}  Nxb3 {[%clk 0:00:52]} 28. Qb4 {[%clk 0:00:14]}  Bc6 {[%clk 0:00:50]} 29. Bb6 {[%clk 0:00:14]}  Bd8 {[%clk 0:00:40]} 30. Qc3 {[%clk 0:00:12]}  f6 {[%clk 0:00:31]} 31. Qxc6 {[%clk 0:00:12]}  Bxb6 {[%clk 0:00:29]} 32. Bxd5+ {[%clk 0:00:08]}  Kh7 {[%clk 0:00:29]} 33. Bxb3 {[%clk 0:00:09]}  Re5 {[%clk 0:00:27]} 34. Qd7 {[%clk 0:00:07]}  Rxf5 {[%clk 0:00:10]} 35. Qxf5+ {[%clk 0:00:06]}  Kh8 {[%clk 0:00:11]} 36. Bc2 {[%clk 0:00:07]}  Bxf2+ {[%clk 0:00:12]} 37. Kxf2 {[%clk 0:00:06]}  Kg8 {[%clk 0:00:13]} 38. Rd7 {[%clk 0:00:05]}  Kf8 {[%clk 0:00:12]} 39. Qe6 {[%clk 0:00:05]}  Rb7 {[%clk 0:00:10]} 40. Qf7# {[%clk 0:00:06]} 1-0


[Site "https://www.chess.com"]

[Event "Titled Tuesday Blitz May 03 Early 2022"]
[White "Darini, Pouria"]
[Black "Saldano Dayer, Horacio"]
[WhiteFideId "12502200"]
[BlackFideId "103411"]
[WhiteElo "2489"]
[BlackElo "2419"]
[Result "1-0"]
[Round "02"]
[TimeControl "180+1"]
[Date "2022.05.03"]
[WhiteClock "0:00:20"]
[BlackClock "0:00:06"]

1. e4 {[%clk 0:03:00]}  e6 {[%clk 0:02:59]} 2. d4 {[%clk 0:03:00]}  d5 {[%clk 0:02:59]} 3. Nc3 {[%clk 0:02:58]}  Bb4 {[%clk 0:02:58]} 4. e5 {[%clk 0:02:47]}  c5 {[%clk 0:02:57]} 5. a3 {[%clk 0:02:47]}  Bxc3+ {[%clk 0:02:57]} 6. bxc3 {[%clk 0:02:48]}  Nc6 {[%clk 0:02:57]} 7. Qg4 {[%clk 0:02:40]}  g6 {[%clk 0:02:55]} 8. Nf3 {[%clk 0:02:22]}  Qa5 {[%clk 0:02:51]} 9. Bd2 {[%clk 0:02:21]}  Qa4 {[%clk 0:02:51]} 10. Bd3 {[%clk 0:01:44]}  c4 {[%clk 0:02:41]} 11. Be2 {[%clk 0:01:44]}  Bd7 {[%clk 0:02:37]} 12. O-O {[%clk 0:01:43]}  O-O-O {[%clk 0:02:31]} 13. Ra2 {[%clk 0:01:28]}  f6 {[%clk 0:01:39]} 14. Qg3 {[%clk 0:01:25]}  Rf8 {[%clk 0:01:18]} 15. h4 {[%clk 0:01:18]}  Qa5 {[%clk 0:01:03]} 16. Re1 {[%clk 0:01:04]}  fxe5 {[%clk 0:00:52]} 17. Nxe5 {[%clk 0:00:49]}  Nxe5 {[%clk 0:00:51]} 18. Qxe5 {[%clk 0:00:47]}  Ne7 {[%clk 0:00:32]} 19. Bf4 {[%clk 0:00:47]}  Nc6 {[%clk 0:00:28]} 20. Qd6 {[%clk 0:00:44]}  Rxf4 {[%clk 0:00:25]} 21. Qxf4 {[%clk 0:00:45]}  Qxc3 {[%clk 0:00:25]} 22. Rd1 {[%clk 0:00:43]}  Re8 {[%clk 0:00:16]} 23. Qd2 {[%clk 0:00:43]}  Qxd2 {[%clk 0:00:15]} 24. Rxd2 {[%clk 0:00:44]}  Kc7 {[%clk 0:00:15]} 25. c3 {[%clk 0:00:44]}  b5 {[%clk 0:00:15]} 26. Rab2 {[%clk 0:00:43]}  Rb8 {[%clk 0:00:16]} 27. Bg4 {[%clk 0:00:38]}  Kd6 {[%clk 0:00:15]} 28. f4 {[%clk 0:00:37]}  Ne7 {[%clk 0:00:14]} 29. Kf2 {[%clk 0:00:31]}  Nf5 {[%clk 0:00:14]} 30. g3 {[%clk 0:00:29]}  Kc7 {[%clk 0:00:14]} 31. Re2 {[%clk 0:00:28]}  Kd6 {[%clk 0:00:12]} 32. Re1 {[%clk 0:00:27]}  a5 {[%clk 0:00:12]} 33. h5 {[%clk 0:00:25]}  gxh5 {[%clk 0:00:09]} 34. Bxh5 {[%clk 0:00:25]}  Rg8 {[%clk 0:00:08]} 35. g4 {[%clk 0:00:24]}  Ng7 {[%clk 0:00:06]} 36. Rh1 {[%clk 0:00:21]}  Rf8 {[%clk 0:00:07]} 37. Ke3 {[%clk 0:00:20]}  Rf6 {[%clk 0:00:06]} 38. g5 {[%clk 0:00:20]}  Rf8 {[%clk 0:00:05]} 39. Bg4 {[%clk 0:00:20]}  Nf5+ {[%clk 0:00:04]} 40. Bxf5 {[%clk 0:00:20]}  exf5 {[%clk 0:00:05]} 41. Rh6+ {[%clk 0:00:21]}  Kc7 {[%clk 0:00:04]} 42. Kf3 {[%clk 0:00:20]}  Re8 {[%clk 0:00:05]} 43. Re2 {[%clk 0:00:19]}  Rxe2 {[%clk 0:00:04]} 44. Kxe2 {[%clk 0:00:20]}  b4 {[%clk 0:00:05]} 45. axb4 {[%clk 0:00:20]}  axb4 {[%clk 0:00:05]} 46. cxb4 {[%clk 0:00:20]}  c3 {[%clk 0:00:06]} 47. Kd3 {[%clk 0:00:20]} 1-0


[Site "https://www.chess.com"]

[Event "Titled Tuesday Blitz May 03 Early 2022"]
[White "Dixit, Nikhil"]
[Black "Bashirli, Saadat"]
[WhiteFideId "5059534"]
[BlackFideId "13429990"]
[WhiteElo "2223"]
[BlackElo "1173"]
[Result "1-0"]
[Round "02"]
[TimeControl "180+1"]
[Date "2022.05.03"]
[WhiteClock "0:01:21"]
[BlackClock "0:00:22"]

1. e4 {[%clk 0:03:00]}  c5 {[%clk 0:02:58]} 2. Nf3 {[%clk 0:03:00]}  g6 {[%clk 0:02:53]} 3. d4 {[%clk 0:02:59]}  cxd4 {[%clk 0:02:52]} 4. Qxd4 {[%clk 0:03:00]}  Nf6 {[%clk 0:02:50]} 5. Bb5 {[%clk 0:02:57]}  a6 {[%clk 0:02:42]} 6. e5 {[%clk 0:02:56]}  axb5 {[%clk 0:02:31]} 7. exf6 {[%clk 0:02:54]}  exf6 {[%clk 0:02:29]} 8. O-O {[%clk 0:02:52]}  Be7 {[%clk 0:02:24]} 9. Bh6 {[%clk 0:02:49]}  Nc6 {[%clk 0:02:22]} 10. Qd2 {[%clk 0:02:47]}  g5 {[%clk 0:02:20]} 11. Nc3 {[%clk 0:02:44]}  b4 {[%clk 0:02:10]} 12. Nd5 {[%clk 0:02:43]}  d6 {[%clk 0:02:05]} 13. Rfe1 {[%clk 0:02:30]}  Be6 {[%clk 0:02:01]} 14. Nxe7 {[%clk 0:02:19]}  Qxe7 {[%clk 0:01:56]} 15. Nd4 {[%clk 0:02:20]}  Nxd4 {[%clk 0:01:52]} 16. Qxd4 {[%clk 0:02:21]}  Rg8 {[%clk 0:01:43]} 17. f4 {[%clk 0:02:10]}  Rg6 {[%clk 0:01:22]} 18. Bxg5 {[%clk 0:02:06]}  fxg5 {[%clk 0:01:16]} 19. f5 {[%clk 0:02:01]}  Rf6 {[%clk 0:01:12]} 20. fxe6 {[%clk 0:01:59]}  fxe6 {[%clk 0:01:11]} 21. Qxb4 {[%clk 0:01:56]}  Kf7 {[%clk 0:01:08]} 22. Rf1 {[%clk 0:01:52]}  Rf8 {[%clk 0:01:05]} 23. Rxf6+ {[%clk 0:01:51]}  Kxf6 {[%clk 0:01:06]} 24. Rf1+ {[%clk 0:01:51]}  Kg7 {[%clk 0:01:05]} 25. Rxf8 {[%clk 0:01:51]}  Kxf8 {[%clk 0:01:05]} 26. Qe4 {[%clk 0:01:50]}  Kg7 {[%clk 0:01:04]} 27. a4 {[%clk 0:01:49]}  e5 {[%clk 0:01:03]} 28. h3 {[%clk 0:01:44]}  h6 {[%clk 0:01:03]} 29. b4 {[%clk 0:01:44]}  Qc7 {[%clk 0:01:03]} 30. a5 {[%clk 0:01:40]}  Qd7 {[%clk 0:00:55]} 31. c4 {[%clk 0:01:35]}  Kf6 {[%clk 0:00:50]} 32. b5 {[%clk 0:01:34]}  Qc7 {[%clk 0:00:48]} 33. b6 {[%clk 0:01:32]}  Qc5+ {[%clk 0:00:47]} 34. Kh2 {[%clk 0:01:33]}  Qc8 {[%clk 0:00:44]} 35. a6 {[%clk 0:01:31]}  bxa6 {[%clk 0:00:42]} 36. b7 {[%clk 0:01:32]}  Qc7 {[%clk 0:00:36]} 37. Qb1 {[%clk 0:01:31]}  Qb8 {[%clk 0:00:36]} 38. Qb6 {[%clk 0:01:31]}  Ke6 {[%clk 0:00:32]} 39. Qc6 {[%clk 0:01:31]}  e4 {[%clk 0:00:26]} 40. Qc8+ {[%clk 0:01:29]}  Qxc8 {[%clk 0:00:23]} 41. bxc8=Q+ {[%clk 0:01:30]}  Ke5 {[%clk 0:00:21]} 42. c5 {[%clk 0:01:25]}  Kd4 {[%clk 0:00:22]} 43. cxd6 {[%clk 0:01:25]}  Ke3 {[%clk 0:00:20]} 44. d7 {[%clk 0:01:26]}  Ke2 {[%clk 0:00:21]} 45. d8=Q {[%clk 0:01:27]}  Ke1 {[%clk 0:00:22]} 46. Qd4 {[%clk 0:01:19]}  e3 {[%clk 0:00:22]} 47. Qc1+ {[%clk 0:01:19]}  Kf2 {[%clk 0:00:22]} 48. Qcxe3+ {[%clk 0:01:20]}  Kf1 {[%clk 0:00:22]} 49. Qf2# {[%clk 0:01:21]} 1-0


[Site "https://www.chess.com"]